fUSD/lending_fUSD_20241209
["ID","MTS","AMOUNT","RATE_DAILY","PERIOD"]
[344729585,1733747442588,-4800.0,0.000125,2]
[344729586,1733747442650,-4927.915518,0.000125,2]
[344729587,1733747442706,-3404895.38395315,0.000125,2]
[344729588,1733747442716,-1977.67241906,0.000125,2]
[344729589,1733747442819,-19691.99086928,0.000125,2]
[344729590,1733747442878,-720.00058269,0.000125,2]
[344729594,1733747445483,-500.0,0.000119,4]
[344729595,1733747445493,-10626.5885,0.000125,2]
[344729596,1733747445535,-1198.495115,0.000125,2]
[344729600,1733747451622,-98609.72792414,0.000125,2]
[344729622,1733747925140,151.52,9.36e-05,2]
[344729629,1733748200282,200.0,9.127e-05,2]
[344729630,1733748235260,10000000.0,0.000195,120]
[344729644,1733748387348,165.727,0.0001,2]
[344729653,1733748631651,-1106.81,0.00010623,2]
[344729654,1733748631661,-254.0,0.00011033,2]
[344729655,1733748631672,-150.0,0.00011033,2]
[344729656,1733748631683,-150.0,0.00011033,2]
[344729657,1733748631693,-150.0,0.00011033,2]
[344729658,1733748631703,-150.0,0.00011033,2]
[344729659,1733748631713,-150.0,0.00011033,2]
[344729660,1733748631723,-150.0,0.00011033,2]
[344729661,1733748631732,-150.0,0.00011033,2]
[344729662,1733748631742,-150.0,0.00011033,2]
[344729663,1733748631752,-150.0,0.00011033,2]
[344729664,1733748631762,-150.0,0.00011033,2]
[344729665,1733748631772,-111.565,0.00011033,2]
[344729666,1733748631784,-38.435,0.00011033,2]
[344729667,1733748631794,-150.0,0.00011033,2]
[344729668,1733748631804,-150.0,0.00011033,2]
[344729669,1733748631813,-99.3429378,0.00011033,2]
[344729670,1733748631839,-50.6570622,0.00011033,2]
[344729671,1733748631849,-150.0,0.00011033,2]
[344729672,1733748631859,-150.0,0.00011033,2]
[344729673,1733748631868,-150.0,0.00011033,2]
[344729674,1733748631878,-150.0,0.00011033,2]
[344729675,1733748631887,-526.34014912,0.00011442,2]
[344729676,1733748631908,-442.72676573,0.00011442,2]
[344729677,1733748631919,-11496.01087889,0.00011442,2]
[344729678,1733748631953,-1743.99999,0.00011442,2]
[344729692,1733748637666,-506.35402489,0.00011442,2]
[344729693,1733748637725,-2314.0,0.00011442,2]
[344729694,1733748637737,-4047.14933276,0.00011442,2]
[344729695,1733748637785,-3055.5914744,0.00011442,2]
[344729696,1733748637846,-6591.25124358,0.00011442,2]
[344729697,1733748637857,-5063.90960523,0.00011442,2]
[344729716,1733748639718,-286.74176258,0.00011442,2]
[344729717,1733748639731,-578.94499999,0.00011442,2]
[344729718,1733748639782,-6012.5241882,0.00011442,2]
[344729719,1733748639793,-484.11,0.00011442,2]
[344729720,1733748639805,-663.255,0.00011442,2]
[344729721,1733748639902,-5019.68047745,0.00011442,2]
[344729722,1733748639914,-7193.41010718,0.00011442,2]
[344729723,1733748639924,-1000.0,0.00011556,2]
[344729724,1733748639933,-915.58128203,0.00011557,2]
[344729725,1733748639946,-150.0,0.00011557,2]
[344729726,1733748639956,-250.0,0.00011577,2]
[344729728,1733748639965,-250.0,0.00011626,2]
[344729729,1733748639975,-150.0,0.00011638,2]
[344729730,1733748639984,-150.0,0.00011726,2]
[344729731,1733748639994,-789.87,0.00011751,2]
[344729732,1733748640003,-171.56,0.00011833,2]
[344729733,1733748640013,-600.0,0.000119,4]
[344729734,1733748640022,-2751.0,0.00011933,2]
[344729735,1733748640032,-1200.0,0.00012,4]
[344729736,1733748640043,-768.51,0.00012041,2]
[344729737,1733748640053,-871.48,0.00012041,2]
[344729738,1733748640063,-1000.0,0.00012046,2]
[344729739,1733748640073,-1900.0,0.000121,4]
[344729740,1733748640083,-428.04992712,0.00012108,2]
[344729741,1733748640092,-2744.1,0.00012108,2]
[344729742,1733748640102,-150.0,0.00012108,2]
[344729743,1733748640111,-150.0,0.00012178,2]
[344729744,1733748640121,-150.0,0.00012178,2]
[344729745,1733748640131,-435.34,0.00012178,2]
[344729746,1733748640141,-150.0,0.00012178,2]
[344729747,1733748640152,-300.0,0.00012178,2]
[344729748,1733748640162,-364.31,0.00012178,2]
[344729749,1733748640171,-150.0,0.00012178,2]
[344729750,1733748640180,-991.43,0.00012178,2]
[344729751,1733748640190,-435.34,0.00012178,2]
[344729752,1733748640199,-150.0,0.00012178,2]
[344729753,1733748640208,-364.31,0.00012178,2]
[344729754,1733748640218,-150.0,0.00012178,2]
[344729755,1733748640228,-150.0,0.00012178,2]
[344729756,1733748640238,-150.0,0.00012178,2]
[344729757,1733748640247,-150.0,0.00012178,2]
[344729758,1733748640257,-435.34,0.00012178,2]
[344729759,1733748640266,-364.31,0.00012178,2]
[344729760,1733748640276,-435.34,0.00012178,2]
[344729761,1733748640286,-150.0,0.00012178,2]
[344729762,1733748640295,-150.0,0.00012178,2]
[344729763,1733748640305,-364.31,0.00012178,2]
[344729764,1733748640315,-150.0,0.00012178,2]
[344729765,1733748640324,-364.31,0.00012178,2]
[344729766,1733748640334,-435.34,0.00012178,2]
[344729767,1733748640344,-150.0,0.00012178,2]
[344729768,1733748640355,-150.0,0.00012178,2]
[344729769,1733748640364,-435.34,0.00012178,2]
[344729770,1733748640374,-376.1,0.00012178,2]
[344729771,1733748640384,-150.0,0.00012178,2]
[344729772,1733748640393,-300.0,0.00012178,2]
[344729773,1733748640403,-150.0,0.00012178,2]
[344729774,1733748640413,-435.34,0.00012178,2]
[344729775,1733748640423,-150.0,0.00012178,2]
[344729776,1733748640432,-435.34,0.00012178,2]
[344729777,1733748640443,-435.34,0.00012178,2]
[344729778,1733748640453,-186.18758136,0.000122,2]
[344729779,1733748640464,-2500.0,0.000122,4]
[344729780,1733748640474,-5811.7331,0.00012299,2]
[344729781,1733748640484,-1037.3732,0.00012299,2]
[344729782,1733748640494,-1000.0,0.00012299,2]
[344729783,1733748640504,-400.4626,0.000123,2]
[344729784,1733748640514,-1000.0,0.000123,2]
[344729785,1733748640524,-1932.65092202,0.000123,2]
[344729789,1733748643386,-5063.63892488,0.000123,2]
[344729790,1733748643446,-10262.81748661,0.000123,2]
[344729791,1733748643563,-1121.78492836,0.000123,2]
[344729792,1733748643574,-1027.0,0.000123,2]
[344729793,1733748643622,-1863.58136812,0.000123,2]
[344729798,1733748645744,-331.6575005,0.000123,2]
[344729799,1733748645756,-492.5401256,0.000123,2]
[344729800,1733748645771,-6223.49024391,0.000123,2]
[344729801,1733748645780,-8857.9350541,0.000123,2]
[344729802,1733748645791,-2572.3845,0.000123,2]
[344729803,1733748645803,-2209.7939459,0.000123,2]
[344729804,1733748645812,-3200.0,0.000123,4]
[344729805,1733748645821,-136.48474981,0.00012341,2]
[344729806,1733748645832,-1431.54525019,0.00012341,2]
[344729807,1733748645842,-282.09264017,0.0001238,2]
[344729808,1733748645851,-2290.66210964,0.000124,2]
[344729809,1733748645862,-270.48289036,0.000124,2]
[344729810,1733748645872,-175.244,0.000124,2]
[344729811,1733748645881,-541.71782043,0.000124,2]
[344729812,1733748646073,-3858.00000007,0.000124,2]
[344729820,1733748717004,-1189.38,0.00010659,2]
[344729822,1733748801837,205.14,8.99e-05,2]
[344729826,1733748904886,885.0,0.00015,30]
[344729827,1733748905573,885.0,0.00015,30]
[344729828,1733748905651,165.0,0.00015,30]
[344729829,1733748905725,885.0,0.00015,30]
[344729830,1733748906041,885.0,0.00015,30]
[344729831,1733748906387,885.0,0.00015,30]
[344729832,1733748907213,885.0,0.00015,30]
[344729834,1733748907624,885.0,0.00015,30]
[344729842,1733749100828,174.37,9.155e-05,2]
[344729843,1733749204379,575.0,0.00015,30]
[344729844,1733749204614,168.0,0.00015,30]
[344729845,1733749204690,575.0,0.00015,30]
[344729846,1733749205029,575.0,0.00015,30]
[344729847,1733749205355,575.0,0.00015,30]
[344729848,1733749206209,575.0,0.00015,30]
[344729849,1733749206279,575.0,0.00015,30]
[344729850,1733749206512,575.0,0.00015,30]
[344729852,1733749256727,5294.17,0.000155,60]
[344729853,1733749256924,278.17339,0.0001066,2]
[344729855,1733749383085,-500.0,0.00011466,2]
[344729856,1733749383107,-500.0,0.00011466,2]
[344729857,1733749383146,-500.0,0.00011466,2]
[344729858,1733749383175,-300.0,0.00011466,2]
[344729859,1733749383200,-150.0,0.00011466,2]
[344729860,1733749383225,-150.0,0.00011467,2]
[344729861,1733749383251,-23900.0,0.00011467,2]
[344729862,1733749383274,-250.0,0.00011488,2]
[344729863,1733749383299,-1000.0,0.00011583,2]
[344729864,1733749383329,-1000.0,0.00011678,2]
[344729865,1733749383351,-150.0,0.00011678,2]
[344729866,1733749383375,-9090.0,0.00011778,2]
[344729867,1733749383398,-2751.0,0.00011778,2]
[344729868,1733749383424,-20154.0,0.00012,14]
[344729869,1733749383454,-600.0,0.00012,2]
[344729870,1733749383481,-428.04992712,0.00012184,2]
[344729871,1733749383504,-3000.0,0.0001228,2]
[344729872,1733749383529,-2513.2,0.00012298,2]
[344729873,1733749383553,-396.5663,0.00012299,2]
[344729874,1733749383582,-1000.0,0.00012299,2]
[344729875,1733749383606,-9750.2096,0.00012299,2]
[344729876,1733749383629,-5000.0,0.000123,2]
[344729877,1733749383655,-446.83,0.0001234,2]
[344729878,1733749383679,-3000.0,0.0001234,2]
[344729879,1733749383701,-500.0,0.00012373,2]
[344729880,1733749383727,-500.0,0.00012373,2]
[344729881,1733749383751,-84323.32663726,0.00012398,2]
[344729882,1733749383775,-15978.81803878,0.00012399,2]
[344729883,1733749383802,-15978.81803875,0.00012399,2]
[344729884,1733749383830,-15978.81803875,0.00012399,2]
[344729885,1733749383853,-15978.81803875,0.00012399,2]
[344729886,1733749383879,-15978.81803875,0.00012399,2]
[344729887,1733749383903,-15978.81803875,0.00012399,2]
[344729888,1733749383927,-15978.81803875,0.00012399,2]
[344729889,1733749383951,-15978.81803875,0.00012399,2]
[344729890,1733749383974,-15978.81803875,0.00012399,2]
[344729891,1733749383996,-2833.3451,0.000124,2]
[344729892,1733749384022,-24970.9349,0.000124,2]
[344729893,1733749384046,-600.0,0.000124,4]
[344729894,1733749384073,-486.71407152,0.000124,2]
[344729895,1733749384095,-4413.37,0.000124,2]
[344729896,1733749384118,-205096.1789018,0.000124,2]
[344729897,1733749384141,-15978.81803875,0.000124,2]
[344729898,1733749384168,-489.58515867,0.000124,2]
[344729899,1733749384192,-5212.5196,0.00012438,2]
[344729900,1733749384216,-23664.0,0.00012466,2]
[344729901,1733749384239,-330.0,0.00012466,2]
[344729902,1733749384262,-435.34,0.00012478,2]
[344729903,1733749384286,-435.34,0.00012478,2]
[344729904,1733749384308,-435.34,0.00012478,2]
[344729905,1733749384334,-435.34,0.00012478,2]
[344729906,1733749384357,-435.34,0.00012478,2]
[344729907,1733749384380,-435.34,0.00012478,2]
[344729908,1733749384403,-435.34,0.00012478,2]
[344729909,1733749384425,-435.34,0.00012478,2]
[344729910,1733749384448,-435.34,0.00012478,2]
[344729911,1733749384471,-435.34,0.00012478,2]
[344729912,1733749384493,-435.34,0.00012478,2]
[344729913,1733749384516,-435.34,0.00012478,2]
[344729914,1733749384540,-435.34,0.00012478,2]
[344729915,1733749384562,-864.08,0.00012478,2]
[344729916,1733749384586,-5679.90061553,0.0001248,2]
[344729917,1733749384609,-570.91868924,0.00012499,2]
[344729918,1733749384631,-656.0,0.00012499,2]
[344729919,1733749384656,-175173.67011133,0.000125,2]
[344729934,1733749582613,531.69661,0.00010126,2]
[344729935,1733749582638,641.54339,0.00010126,2]
[344729937,1733749758692,205.14,9.199e-05,2]
[344729941,1733749828073,200.0,9.37e-05,2]
[344729959,1733749832019,-400.0,0.000118,4]
[344729960,1733749832029,-625.36433644,0.000119,4]
[344729961,1733749832077,-174.63566356,0.000119,4]
[344729962,1733749832087,-577.01433644,0.00011949,2]
[344729963,1733749832678,-0.1336562,0.00011949,2]
[344729964,1733749832690,-157.37200736,0.00011949,2]
[344729965,1733749832699,-187.18,0.0001208,2]
[344729966,1733749832709,-1200.0,0.000121,4]
[344729967,1733749832719,-194.51863934,0.00012199,2]
[344729968,1733749832728,-300.0,0.00012199,2]
[344729969,1733749832737,-435.34,0.000122,2]
[344729970,1733749832746,-435.34,0.000122,2]
[344729971,1733749832755,-435.34,0.000122,2]
[344729972,1733749832765,-435.34,0.000122,2]
[344729973,1733749832774,-1600.0,0.000122,4]
[344729974,1733749832783,-618.0,0.00012251,2]
[344729975,1733749832792,-1000.0,0.00012299,2]
[344729976,1733749832801,-600.2822,0.00012299,2]
[344729977,1733749832811,-2000.0,0.000123,4]
[344729978,1733749832820,-247.2871533,0.0001234,2]
[344729984,1733749837847,-158.095,0.0001198,2]
[344729985,1733749837856,-191.9438467,0.0001234,2]
[344729986,1733749837866,-29.80347089,0.0001237,2]
[344729987,1733749837903,-497.72,0.0001237,2]
[344729989,1733749839797,-2472.47652911,0.0001237,2]
[344729990,1733749839809,-1173.24,0.0001239,2]
[344729991,1733749839820,-258.4916,0.000124,2]
[344729992,1733749839830,-823.6796,0.000124,2]
[344729993,1733749839840,-1000.0,0.000124,2]
[344729994,1733749839850,-2645.30067115,0.000124,2]
[344729995,1733749839861,-400.0,0.000124,4]
[344729996,1733749839871,-501.36358668,0.00012473,2]
[344729997,1733749839882,-500.0,0.00012473,2]
[344729998,1733749839892,-638.91759667,0.00012473,2]
[344729999,1733749839902,-500.0,0.00012473,2]
[344730000,1733749839914,-500.45175042,0.00012473,2]
[344730001,1733749839924,-572.23415131,0.00012473,2]
[344730002,1733749839935,-500.0,0.00012473,2]
[344730003,1733749839945,-11963.52889666,0.0001249,2]
[344730004,1733749839961,-448.12608553,0.0001249,2]
[344730005,1733749839984,-923.0925,0.0001249,2]
[344730006,1733749840042,-982.45049282,0.0001249,2]
[344730007,1733749840054,-372.37,0.0001249,2]
[344730008,1733749840066,-283.62,0.0001249,2]
[344730009,1733749840077,-6582.4,0.0001249,2]
[344730010,1733749840105,-746.61192709,0.0001249,2]
[344730021,1733749840400,-32834.65394979,0.0001249,2]
[344730023,1733749840412,-15011.0493126,0.0001249,2]
[344730025,1733749840422,-13486.8711373,0.00012491,2]
[344730027,1733749840432,-11962.6929621,0.00012491,2]
[344730028,1733749840441,-10438.5147868,0.00012491,2]
[344730029,1733749840450,-8914.3366116,0.00012491,2]
[344730030,1733749840461,-7390.1584364,0.00012491,2]
[344730031,1733749840471,-150.0,0.00012498,2]
[344730032,1733749840481,-463.84473445,0.00012499,2]
[344730033,1733749840491,-389.38710467,0.00012499,2]
[344730034,1733749840502,-500.0,0.00012499,2]
[344730035,1733749840519,-349.76778211,0.00012499,2]
[344730036,1733749840542,-500.0,0.00012499,2]
[344730037,1733749840552,-500.0,0.00012499,2]
[344730038,1733749840562,-454.63743349,0.00012499,2]
[344730039,1733749840571,-668.0,0.00012499,2]
[344730040,1733749840581,-80520.26603851,0.000125,2]
[344730043,1733749842935,-5137.60035391,0.000125,2]
[344730044,1733749842947,-2252.8635398,0.000125,2]
[344730045,1733749842959,-5786.80317047,0.000125,2]
[344730046,1733749843156,-4963.56874,0.000125,2]
[344730047,1733749843169,-11200.85504994,0.000125,2]
[344730048,1733749843214,-326.60707638,0.000125,2]
[344730049,1733749843226,-1171.47795,0.000125,2]
[344730050,1733749843237,-434.67999985,0.000125,2]
[344730051,1733749843550,-4002.74064589,0.000125,2]
[344730052,1733749843562,-4813.21564394,0.000125,2]
[344730075,1733749845906,-1113.70970627,0.000125,2]
[344730076,1733749845990,-1411.3,0.000125,2]
[344730077,1733749846001,-3376.25222147,0.000125,2]
[344730078,1733749846021,-524.98442595,0.000125,2]
[344730079,1733749846032,-2037.70012354,0.000125,2]
[344730080,1733749846082,-5687.37915259,0.000125,2]
[344730081,1733749846094,-18908.9975,0.000125,2]
[344730086,1733749944342,142.69661,9.814e-05,2]
[344730087,1733749944369,31.67339,9.814e-05,2]
[344730097,1733749970892,1157.70661,0.00010134,5]
[344730098,1733749970918,1189.38,0.00010134,5]
[344730099,1733749970942,1189.38,0.00010134,5]
[344730100,1733749970967,1189.38,0.00010134,5]
[344730101,1733749970993,11000.0,0.00010134,5]
[344730107,1733750103916,168.0,0.00015,30]
[344730108,1733750103991,374.0,0.00015,30]
[344730109,1733750104322,374.0,0.00015,30]
[344730110,1733750104656,374.0,0.00015,30]
[344730111,1733750105040,374.0,0.00015,30]
[344730112,1733750105364,374.0,0.00015,30]
[344730113,1733750105700,374.0,0.00015,30]
[344730116,1733750222635,-50118.59339,0.00010134,5]
[344730119,1733750403895,169.0,0.00015,30]
[344730120,1733750403955,262.0,0.00015,30]
[344730121,1733750404254,262.0,0.00015,30]
[344730122,1733750404566,262.0,0.00015,30]
[344730123,1733750405034,262.0,0.00015,30]
[344730124,1733750405342,262.0,0.00015,30]
[344730125,1733750405667,262.0,0.00015,30]
[344730132,1733750704978,169.0,0.00015,30]
[344730133,1733750705076,183.0,0.00015,30]
[344730134,1733750705439,183.0,0.00015,30]
[344730135,1733750705780,183.0,0.00015,30]
[344730136,1733750706110,183.0,0.00015,30]
[344730137,1733750706420,183.0,0.00015,30]
[344730138,1733750706775,183.0,0.00015,30]
[344730139,1733750708613,3808.83465502,0.0001,2]
[344730140,1733750708637,10000.0,0.0001,2]
[344730141,1733750708659,10000.0,0.0001,2]
[344730142,1733750708689,10000.0,0.0001,2]
[344730143,1733750708713,10000.0,0.0001,2]
[344730144,1733750708735,10000.0,0.0001,2]
[344730145,1733750708758,10000.0,0.0001,2]
[344730146,1733750708781,10000.0,0.0001,2]
[344730147,1733750708804,10000.0,0.0001,2]
[344730148,1733750708826,10000.0,0.0001,2]
[344730149,1733750708850,10000.0,0.0001,2]
[344730150,1733750708873,10000.0,0.0001,2]
[344730151,1733750708895,10000.0,0.0001,2]
[344730152,1733750708921,10000.0,0.0001,2]
[344730153,1733750708946,10000.0,0.0001,2]
[344730154,1733750708973,10000.0,0.0001,2]
[344730155,1733750708995,10000.0,0.0001,2]
[344730156,1733750709017,10000.0,0.0001,2]
[344730157,1733750709040,10000.0,0.0001,2]
[344730158,1733750709062,10000.0,0.0001,2]
[344730159,1733750709085,10000.0,0.0001,2]
[344730160,1733750709107,10000.0,0.0001,2]
[344730161,1733750709129,10000.0,0.0001,2]
[344730162,1733750709152,10000.0,0.0001,2]
[344730163,1733750709176,10000.0,0.0001,2]
[344730164,1733750709200,10000.0,0.0001,2]
[344730165,1733750709224,10000.0,0.0001,2]
[344730166,1733750709247,10000.0,0.0001,2]
[344730167,1733750709270,10000.0,0.0001,2]
[344730168,1733750709294,10000.0,0.0001,2]
[344730169,1733750709317,10000.0,0.0001,2]
[344730170,1733750709341,10000.0,0.0001,2]
[344730171,1733750709366,10000.0,0.0001,2]
[344730172,1733750709389,10000.0,0.0001,2]
[344730173,1733750709412,10000.0,0.0001,2]
[344730174,1733750709439,10000.0,0.0001,2]
[344730175,1733750709461,10000.0,0.0001,2]
[344730176,1733750709483,10000.0,0.0001,2]
[344730177,1733750709507,10000.0,0.0001,2]
[344730178,1733750709530,10000.0,0.0001,2]
[344730179,1733750709553,10000.0,0.0001,2]
[344730180,1733750709576,10000.0,0.0001,2]
[344730181,1733750709602,10000.0,0.0001,2]
[344730182,1733750709629,10000.0,0.0001,2]
[344730183,1733750709652,10000.0,0.0001,2]
[344730184,1733750709678,10000.0,0.0001,2]
[344730185,1733750709702,10000.0,0.0001,2]
[344730186,1733750709725,10000.0,0.0001,2]
[344730187,1733750709748,10000.0,0.0001,2]
[344730188,1733750709770,10000.0,0.0001,2]
[344730189,1733750709793,10000.0,0.0001,2]
[344730190,1733750709820,5030871.82833918,0.0001,2]
[344730191,1733750712787,1063.5,8.981e-05,2]
[344730194,1733750720453,10075.60132748,9e-05,2]
[344730198,1733750730128,158503.85567443,9e-05,2]
[344730200,1733750731748,4776.4,0.0001,2]
[344730201,1733750732204,5456.06296229,0.0001,2]
[344730203,1733750737001,28000.0,8e-05,2]
[344730209,1733750767837,1000.0,7e-05,2]
[344730211,1733750821398,1208657.32650152,9.86e-05,2]
[344730214,1733750833135,1940.92423779,0.000163,120]
[344730215,1733750864005,4495.3261993,9e-05,2]
[344730217,1733750885666,35021.31229294,0.0001,2]
[344730225,1733750926613,300.47686088,9e-05,3]
[344730226,1733750989983,10000.0,0.00019,120]
[344730228,1733751006652,151.0,0.00015,30]
[344730229,1733751006967,151.0,0.00015,30]
[344730230,1733751007307,151.0,0.00015,30]
[344730231,1733751007624,151.0,0.00015,30]
[344730232,1733751007975,151.0,0.00015,30]
[344730233,1733751008324,151.0,0.00015,30]
[344730243,1733751032303,-200.0,0.00010887,2]
[344730244,1733751032312,-250.0,0.00010887,2]
[344730245,1733751032321,-250.0,0.00010887,2]
[344730246,1733751032331,-800.0,0.00010887,2]
[344730247,1733751032340,-1076.56,0.00010917,2]
[344730249,1733751032349,-150.0,0.00010959,2]
[344730250,1733751032359,-169.55,0.00011214,2]
[344730251,1733751032368,-1063.5,0.00011245,2]
[344730252,1733751032377,-300.0,0.00011506,2]
[344730253,1733751032387,-2751.0,0.00011507,2]
[344730254,1733751032396,-2833.49,0.00011511,2]
[344730255,1733751032413,-1988.84048,0.00011511,2]
[344730256,1733751032425,-37824.10362,0.00011511,2]
[344730257,1733751032434,-183.99,0.00011608,2]
[344730258,1733751032443,-183.99,0.00011611,2]
[344730259,1733751032453,-183.99,0.00011614,2]
[344730260,1733751032462,-183.99,0.00011617,2]
[344730261,1733751032473,-183.99,0.0001162,2]
[344730262,1733751032482,-183.99,0.00011623,2]
[344730263,1733751032492,-150.0,0.00011625,2]
[344730264,1733751032501,-183.99,0.00011626,2]
[344730265,1733751032510,-22845.40575,0.00011626,2]
[344730266,1733751032521,-473.89346681,0.00011626,2]
[344730267,1733751032541,-6680.69078319,0.00011626,2]
[344730268,1733751032550,-20134.91,0.00011626,2]
[344730269,1733751032768,-307.79,0.00011626,2]
[344730270,1733751032778,-173.07,0.00011626,2]
[344730271,1733751032788,-183.99,0.00011629,2]
[344730272,1733751032797,-183.99,0.00011632,2]
[344730273,1733751032806,-183.99,0.00011635,2]
[344730274,1733751032816,-183.99,0.00011638,2]
[344730275,1733751032826,-183.99,0.00011641,2]
[344730276,1733751032835,-415.55,0.00011643,2]
[344730277,1733751032844,-183.99,0.00011644,2]
[344730278,1733751032853,-183.99,0.00011647,2]
[344730279,1733751032863,-183.99,0.00011651,2]
[344730280,1733751032872,-183.99,0.00011654,2]
[344730281,1733751032881,-183.99,0.00011657,2]
[344730282,1733751032890,-183.99,0.0001166,2]
[344730283,1733751032899,-183.99,0.00011663,2]
[344730284,1733751032909,-1000.0,0.00011665,2]
[344730285,1733751032918,-183.99,0.00011666,2]
[344730286,1733751032927,-8270.79,0.00011682,2]
[344730287,1733751032937,-150.0,0.00011737,2]
[344730288,1733751032946,-200.0,0.00011822,2]
[344730289,1733751032955,-363.98,0.00011878,2]
[344730290,1733751032965,-437.058,0.0001188,2]
[344730291,1733751032977,-150.0,0.000119,2]
[344730292,1733751032987,-364.31,0.000119,2]
[344730293,1733751032996,-150.0,0.000119,2]
[344730294,1733751033006,-150.0,0.00011978,2]
[344730295,1733751033015,-364.31,0.00011978,2]
[344730296,1733751033025,-169.55,0.0001214,2]
[344730297,1733751033035,-150.0,0.00012152,2]
[344730298,1733751033045,-150.0,0.00012152,2]
[344730299,1733751033055,-150.0,0.00012152,2]
[344730300,1733751033064,-150.0,0.00012152,2]
[344730301,1733751033074,-150.0,0.00012152,2]
[344730302,1733751033084,-428.04992712,0.0001222,2]
[344730303,1733751033095,-800.0,0.00012248,2]
[344730304,1733751033105,-3851.1447,0.00012299,2]
[344730305,1733751033115,-3000.0,0.0001237,2]
[344730306,1733751033125,-9305.16274237,0.00012399,2]
[344730307,1733751033136,-9305.16274236,0.00012399,2]
[344730308,1733751033147,-9305.16274236,0.00012399,2]
[344730309,1733751033158,-9305.16274236,0.00012399,2]
[344730310,1733751033168,-9305.16274236,0.00012399,2]
[344730311,1733751033178,-2500.0,0.00012399,2]
[344730312,1733751033189,-9305.16274236,0.000124,2]
[344730313,1733751033199,-9305.16274236,0.000124,2]
[344730314,1733751033209,-936.1442,0.000124,2]
[344730315,1733751033220,-2500.0,0.000124,2]
[344730316,1733751033237,-9305.16274236,0.000124,2]
[344730317,1733751033254,-9305.16274236,0.000124,2]
[344730318,1733751033264,-2500.0,0.000124,2]
[344730319,1733751033274,-58740.81171756,0.000124,2]
[344730320,1733751033284,-9305.16274236,0.000124,2]
[344730321,1733751033294,-500.0,0.00012473,2]
[344730322,1733751033305,-5728.4557609,0.00012488,2]
[344730323,1733751033316,-4944.5618146,0.00012491,2]
[344730324,1733751033327,-4160.6678684,0.00012491,2]
[344730325,1733751033337,-3376.7739222,0.00012491,2]
[344730326,1733751033347,-2592.8799759,0.00012491,2]
[344730327,1733751033360,-1808.9860297,0.00012491,2]
[344730328,1733751033371,-9878.62361999,0.00012497,3]
[344730329,1733751033381,-161.6263815,0.00012499,2]
[344730330,1733751033391,-612.94,0.00012499,2]
[344730331,1733751033401,-2000.0,0.00012499,2]
[344730332,1733751033411,-57066.09718885,0.000125,2]
[344730333,1733751033421,-86677.62427861,0.000125,2]
[344730334,1733751033434,-1000.09,0.000125,2]
[344730335,1733751033490,-277.42914967,0.000125,2]
[344730339,1733751037895,-28493.92886639,0.000125,2]
[344730341,1733751037908,-272.42569011,0.000125,2]
[344730342,1733751037923,-7569.399999,0.000125,2]